bitfinex-derivatives/quotes_BTCF0:USTF0_20251108
["timestamp","ask_amount","ask_price","bid_price","bid_amount"]
[1762613582570,0.3333061,102100.0,102090.0,0.48367976]
[1762613583773,0.3333061,102100.0,102090.0,0.58167686]
[1762613583974,0.3333061,102100.0,102090.0,0.48367976]
[1762613584472,0.3333061,102100.0,102090.0,0.58167686]
[1762613584980,0.3333061,102100.0,102090.0,0.48367976]
[1762613585380,0.3333061,102100.0,102090.0,0.58167686]
[1762613585879,0.3333061,102100.0,102090.0,0.48367976]
[1762613586079,0.3333061,102100.0,102090.0,0.005]
[1762613586279,0.38616201,102100.0,102090.0,0.005]
[1762613586980,0.74696201,102100.0,102090.0,0.005]
[1762613587375,0.74696201,102100.0,102090.0,0.1029971]
[1762613587577,0.38616201,102100.0,102090.0,0.1029971]
[1762613587778,0.11877,102080.0,102040.0,0.00999999]
[1762613587969,0.52152976,102050.0,102010.0,0.11787976]
[1762613588174,0.19232,102020.0,102010.0,0.11787976]
[1762613588373,0.04285,102020.0,102010.0,0.24732636]
[1762613588575,0.30468849,102020.0,102010.0,0.84732636]
[1762613588768,0.30477571,102020.0,102010.0,0.84732636]
[1762613588972,0.66557571,102020.0,102010.0,0.84732636]
[1762613589168,0.77817207,102020.0,102010.0,0.84732636]
[1762613589870,0.77817207,102020.0,102010.0,0.84932636]
[1762613590068,0.77817207,102020.0,102010.0,0.85232636]
[1762613590271,0.77817207,102020.0,102010.0,0.605]
[1762613594583,0.77817207,102020.0,102010.0,0.703074]
[1762613594775,0.77817207,102020.0,102010.0,0.4869]
[1762613594980,1.02549843,102020.0,102010.0,0.3688]
[1762613595178,1.02549843,102020.0,102010.0,0.2507]
[1762613595375,1.02541121,102020.0,102010.0,0.1326]
[1762613595685,0.77808485,102020.0,102010.0,0.1326]
[1762613596479,0.77817063,102020.0,102010.0,0.1316]
[1762613596682,0.77816401,102020.0,102010.0,0.1296]
[1762613596985,0.77808485,102020.0,102010.0,0.1306]
[1762613597376,0.77808485,102020.0,102010.0,0.20221]
[1762613598076,0.77816308,102020.0,102010.0,0.20221]
[1762613599378,0.80032301,102020.0,102010.0,0.20221]
[1762613600784,0.80032301,102020.0,102010.0,0.1306]
[1762613603187,0.80032301,102020.0,102010.0,0.20221]
[1762613603486,0.80032301,102020.0,102010.0,0.1306]
[1762613607285,1.04764937,102020.0,102010.0,0.1306]
[1762613607592,0.216914,102010.0,102000.0,2e-08]
[1762613607793,0.88209107,102010.0,102000.0,0.01250002]
[1762613607979,1.13670943,102010.0,102000.0,0.01250002]
[1762613608183,1.1366322,102010.0,102000.0,0.01250002]
[1762613608790,1.136728,102010.0,102000.0,0.01250002]
[1762613608986,1.13673906,102010.0,102000.0,0.01450002]
[1762613609185,1.1366322,102010.0,102000.0,0.01450002]
[1762613610389,0.88930584,102010.0,102000.0,0.22429002]
[1762613610596,0.88930584,102010.0,102000.0,0.17758002]
[1762613610894,0.88930584,102010.0,102000.0,0.09932002]
[1762613611290,0.94216175,102010.0,102000.0,0.01450002]
[1762613611486,0.94226108,102010.0,102000.0,0.09932002]
[1762613611793,0.8894127,102010.0,102000.0,0.22429002]
[1762613612296,0.8894127,102010.0,102000.0,0.32237362]
[1762613612487,0.85452192,102010.0,102000.0,0.32237362]
[1762613612683,0.70810418,102010.0,102000.0,0.32237362]
[1762613613293,0.74299496,102010.0,102000.0,0.32237362]
[1762613615094,0.11884,101990.0,101980.0,0.20691]
[1762613615396,1.0076277,101990.0,101980.0,0.3050129]
[1762613615792,1.06048361,101990.0,101980.0,0.3050129]
[1762613615994,1.06048361,101990.0,101980.0,0.20691]
[1762613616192,1.02559283,101990.0,101980.0,0.20691]
[1762613617197,1.0433044,101990.0,101980.0,0.20791]
[1762613618301,1.0433044,101990.0,101980.0,0.20991]
[1762613618801,0.2597928,101980.0,101970.0,0.08496702]
[1762613618996,0.71323274,101980.0,101970.0,0.20993702]
[1762613619196,0.8241293,101980.0,101970.0,0.20993702]
[1762613619998,0.75368663,101980.0,101970.0,0.00014702]
[1762613620396,0.82410216,101980.0,101970.0,0.00014702]
[1762613620602,0.82710216,101980.0,101970.0,0.00014702]
[1762613621103,0.75668663,101980.0,101970.0,0.00014702]
[1762613621305,0.82707662,101980.0,101970.0,0.00014702]
[1762613621495,0.75679349,101980.0,101970.0,0.00014702]
[1762613621696,0.75968663,101980.0,101970.0,0.00014702]
[1762613622298,0.83005747,101980.0,101970.0,0.00014702]
[1762613622498,0.75968663,101980.0,101970.0,0.00014702]
[1762613623902,1.10511929,101980.0,101950.0,0.04678269]
[1762613624100,1.10511929,101980.0,101950.0,0.07966269]
[1762613624101,0.97048887,101960.0,101950.0,0.07966269]
[1762613624300,0.99274201,101960.0,101950.0,0.20122269]
[1762613624507,1.09874521,101960.0,101950.0,0.20122269]
[1762613626112,1.13390757,101960.0,101950.0,0.20122269]
[1762613626408,1.0811408,101960.0,101950.0,0.20122269]
[1762613626807,1.09874521,101960.0,101950.0,0.20122269]
[1762613627308,1.09974521,101960.0,101950.0,0.20122269]
[1762613627611,1.09974521,101960.0,101950.0,0.07966269]
[1762613627809,1.09974521,101960.0,101950.0,0.20122269]
[1762613628008,1.24750791,101960.0,101950.0,7.269e-05]
[1762613628216,1.2474147,101960.0,101950.0,7.269e-05]
[1762613628511,1.19464793,101960.0,101950.0,7.269e-05]
[1762613629412,1.24734774,101960.0,101950.0,7.269e-05]
[1762613629613,0.098,101950.0,101940.0,0.00014702]
[1762613629813,0.55123255,101950.0,101940.0,0.00014702]
[1762613630003,0.65676391,101950.0,101940.0,0.00014702]
[1762613630202,0.63919665,101950.0,101940.0,0.00014702]
[1762613630798,0.63919665,101950.0,101940.0,0.00114702]
[1762613632608,0.63927662,101950.0,101940.0,0.00114702]
[1762613632815,0.63919665,101950.0,101940.0,0.20229702]
[1762613633017,0.62159504,101950.0,101940.0,0.20229702]
[1762613633220,0.62167989,101950.0,101940.0,0.20129702]
[1762613633414,0.62159504,101950.0,101940.0,0.20129702]
[1762613633715,0.62259504,101950.0,101940.0,0.20129702]
[1762613634318,0.72072674,101950.0,101940.0,0.20129702]
[1762613635419,0.73832835,101950.0,101940.0,0.20129702]
[1762613636820,0.885247,101950.0,101940.0,0.20129702]
[1762613637520,0.88536916,101950.0,101940.0,0.20129702]
[1762613637821,0.885247,101950.0,101940.0,0.20129702]
[1762613639619,1.246047,101950.0,101940.0,0.20129702]
[1762613641219,1.19342314,101950.0,101940.0,0.20129702]
[1762613641412,1.19346835,101950.0,101940.0,0.20129702]
[1762613641617,1.26361426,101950.0,101940.0,0.00014702]
[1762613642322,1.41144599,101950.0,101940.0,0.00014702]
[1762613644922,1.26361426,101950.0,101940.0,0.19422702]
[1762613646028,1.26371848,101950.0,101940.0,0.19422702]
[1762613647412,0.73854739,101950.0,101940.0,0.44020005]
[1762613647912,0.71497989,101950.0,101940.0,0.44020005]
[1762613648116,0.71497989,101950.0,101940.0,0.29236832]
[1762613648315,0.71497989,101950.0,101940.0,0.44020005]
[1762613650327,0.71497989,101950.0,101940.0,0.52878626]
[1762613650828,0.66215971,101950.0,101940.0,0.52878626]
[1762613651234,0.73243233,101950.0,101940.0,0.52878626]
[1762613652432,0.71504985,101950.0,101940.0,0.52878626]
[1762613653129,0.61691815,101950.0,101940.0,0.52878626]
[1762613653330,0.71504985,101950.0,101940.0,0.52878626]
[1762613654329,0.71504985,101950.0,101940.0,0.29236832]
[1762613654524,0.66215971,101950.0,101940.0,0.52878626]
[1762613654725,1.2114413,101950.0,101940.0,0.31243599]
[1762613655129,1.2114413,101950.0,101940.0,0.41057729]
[1762613655331,1.09323233,101950.0,101940.0,0.41057729]
[1762613655629,1.07587236,101950.0,101940.0,0.52878626]
[1762613656028,1.05207318,101950.0,101940.0,0.52878626]
[1762613656324,1.06943315,101950.0,101940.0,0.52878626]
[1762613656724,1.06943315,101950.0,101940.0,0.41057729]
[1762613657230,0.99916053,101950.0,101940.0,0.41057729]
[1762613657422,0.99916053,101950.0,101940.0,0.52878626]
[1762613657623,0.95395202,101950.0,101940.0,0.52878626]
[1762613658333,0.5422878,101950.0,101940.0,0.52878626]
[1762613658533,0.57756613,101950.0,101940.0,0.52878626]
[1762613659426,0.67569783,101950.0,101940.0,0.52878626]
[1762613660333,0.67569783,101950.0,101940.0,0.29236832]
[1762613660631,0.67569783,101950.0,101940.0,0.52878626]
[1762613662235,0.6404195,101950.0,101940.0,0.52878626]
[1762613662433,0.6404195,101950.0,101940.0,0.41057729]
[1762613662633,0.6404195,101950.0,101940.0,0.52878626]
[1762613664036,0.61685198,101950.0,101940.0,0.52878626]
[1762613664528,0.51872028,101950.0,101940.0,0.52878626]
[1762613665235,0.55399777,101950.0,101940.0,0.52878626]
[1762613667038,0.65212947,101950.0,101940.0,0.52878626]
[1762613668040,0.55399777,101950.0,101940.0,0.52878626]
[1762613669235,0.53206874,101950.0,101940.0,0.52878626]
[1762613669936,0.47914555,101950.0,101940.0,0.52878626]
[1762613670130,0.63020044,101950.0,101940.0,0.52878626]
[1762613674635,0.74840941,101950.0,101940.0,0.30788599]
[1762613674846,0.59492295,101950.0,101940.0,0.30788599]
[1762613675642,0.59492295,101950.0,101940.0,0.40602729]
[1762613675845,0.59492295,101950.0,101940.0,0.30788599]
[1762613676446,0.59492295,101950.0,101940.0,0.18967702]
[1762613676745,0.59492295,101950.0,101940.0,0.30788599]
[1762613677139,0.59492295,101950.0,101940.0,0.40602729]
[1762613678047,0.59492295,101950.0,101940.0,0.52423626]
[1762613678749,0.59492295,101950.0,101940.0,0.28781832]
[1762613679047,0.59492295,101950.0,101940.0,0.52423626]
[1762613679551,0.59492295,101950.0,101940.0,0.28781832]
[1762613679742,0.59492295,101950.0,101940.0,0.52423626]
[1762613680046,0.59492295,101950.0,101940.0,0.42609496]
[1762613680643,0.59492295,101950.0,101940.0,0.52423626]
[1762613680852,0.59492295,101950.0,101940.0,0.40602729]
[1762613682753,0.59492295,101950.0,101940.0,0.52423626]
[1762613694953,0.59492295,101950.0,101940.0,0.42609496]
[1762613695153,0.59492295,101950.0,101940.0,0.52423626]
[1762613701066,0.47921057,101950.0,101940.0,0.42609496]
[1762613701359,0.47921057,101950.0,101940.0,0.30788599]
[1762613701661,0.53213376,101950.0,101940.0,0.30788599]
[1762613701865,0.53213376,101950.0,101940.0,0.30888599]
[1762613702167,0.53113376,101950.0,101940.0,0.30888599]
[1762613702758,0.49579125,101950.0,101940.0,0.40702729]
[1762613702959,0.49579125,101950.0,101940.0,0.40602729]
[1762613703263,0.49579125,101950.0,101940.0,0.30788599]
[1762613703454,0.49579125,101950.0,101940.0,0.18967702]
[1762613703661,0.49579125,101950.0,101940.0,0.30788599]
[1762613703966,0.49679125,101950.0,101940.0,0.30788599]
[1762613704467,0.49679125,101950.0,101940.0,0.30790078]
[1762613704667,0.49679125,101950.0,101940.0,0.40604218]
[1762613704870,0.53213736,101950.0,101940.0,0.40604218]
[1762613705169,0.49679125,101950.0,101940.0,0.40604218]
[1762613705969,0.49679125,101950.0,101940.0,0.52426594]
[1762613706169,0.57734573,101950.0,101940.0,0.52426594]
[1762613706360,0.57734573,101950.0,101940.0,0.40604218]
[1762613706560,0.63026892,101950.0,101940.0,0.40604218]
[1762613706762,0.54199976,101950.0,101940.0,0.18967702]
[1762613707069,0.54199976,101950.0,101940.0,0.40604208]
[1762613707070,0.57634573,101950.0,101940.0,0.40604208]
[1762613707869,0.57734573,101950.0,101940.0,0.40604208]
[1762613708369,0.57734573,101950.0,101940.0,0.40704208]
[1762613709271,0.57734573,101950.0,101940.0,0.40604208]
[1762613710362,0.59492295,101950.0,101940.0,0.40604208]
[1762613719973,0.63025555,101950.0,101940.0,0.40604208]
[1762613721184,0.53212385,101950.0,101940.0,0.40604208]
[1762613721788,0.53212385,101950.0,101940.0,0.52426584]
[1762613723090,0.53212385,101950.0,101940.0,0.52526584]
[1762613723281,0.47920066,101950.0,101940.0,0.52526584]
[1762613723690,0.47920066,101950.0,101940.0,0.67486584]
[1762613723879,0.11840066,101950.0,101940.0,0.67486584]
[1762613724084,0.00110422,101950.0,101940.0,1.03566584]
[1762613724291,0.00010422,101950.0,101940.0,1.28090584]
[1762613724691,0.00010422,101950.0,101940.0,1.03566584]
[1762613725394,0.00010422,101950.0,101940.0,1.28090584]
[1762613725581,0.08825579,101960.0,101950.0,0.14434]
[1762613725787,0.0353326,101960.0,101950.0,0.36069546]
[1762613726097,0.13857956,101960.0,101950.0,0.36069546]
[1762613726298,0.10324696,101960.0,101950.0,0.36069546]
[1762613726790,0.10332229,101960.0,101950.0,0.36069546]
[1762613726992,0.03547962,101970.0,101960.0,0.2424621]
[1762613727191,0.00014702,101970.0,101960.0,0.83970962]
[1762613727395,0.00014702,101970.0,101960.0,0.72148586]
[1762613728595,0.00014702,101970.0,101960.0,0.87208586]
[1762613728791,0.3961326,101980.0,101970.0,0.2424524]
[1762613728792,0.0353326,101980.0,101970.0,0.2424524]
[1762613728999,0.3961326,101990.0,101980.0,0.2424428]
[1762613729297,0.50230343,101990.0,101980.0,0.36066656]
[1762613729691,0.60039663,101990.0,101980.0,0.36066656]
[1762613729897,0.50230343,101990.0,101980.0,0.36066656]
[1762613730490,0.46897083,101990.0,101980.0,0.36066656]
[1762613731897,0.56706403,101990.0,101980.0,0.36066656]
[1762613732101,0.56906403,101990.0,101980.0,0.36066656]
[1762613733402,0.47097083,101990.0,101980.0,0.36066656]
[1762613733704,0.11017083,101990.0,101980.0,0.36066656]
[1762613733894,0.47097083,101990.0,101980.0,0.36066656]
[1762613734993,0.56906403,101990.0,101980.0,0.36066656]
[1762613736307,0.47097083,101990.0,101980.0,0.36066656]
[1762613744507,0.11017083,101990.0,101980.0,0.36066656]
[1762613746102,0.47097083,101990.0,101980.0,0.36066656]
[1762613746499,0.46897083,101990.0,101980.0,0.36066656]
[1762613746698,0.46897083,101990.0,101980.0,0.36166656]
[1762613747705,0.3608,101990.0,101980.0,0.36166656]
[1762613748403,0.56587168,101990.0,101980.0,0.26356376]
[1762613748608,0.56587168,101990.0,101980.0,0.36166656]
[1762613748811,0.56587168,101990.0,101980.0,0.2434428]
[1762613749510,0.56587168,101990.0,101980.0,0.2424428]
[1762613749711,0.56587168,101990.0,101980.0,0.2434428]
[1762613750209,0.60120428,101990.0,101980.0,0.2434428]
[1762613750509,0.60120428,101990.0,101980.0,0.2424428]
[1762613751204,0.60220428,101990.0,101980.0,0.2424428]
[1762613751913,0.60220428,101990.0,101980.0,0.36066656]
[1762613752112,0.60220428,101990.0,101980.0,0.2424428]
[1762613752314,0.60220428,101990.0,101980.0,0.36066656]
[1762613752707,0.60120428,101990.0,101980.0,0.36066656]
[1762613752908,0.60120428,101990.0,101980.0,0.36166656]
[1762613753214,0.65412747,101990.0,101980.0,0.36166656]
[1762613753514,0.65412747,101990.0,101980.0,0.36066656]
[1762613753713,0.55603427,101990.0,101980.0,0.36066656]
[1762613754516,0.55703427,101990.0,101980.0,0.36066656]
[1762613754920,0.50411108,101990.0,101980.0,0.36066656]
[1762613755211,0.55703427,101990.0,101980.0,0.36066656]
[1762613755422,0.65512747,101990.0,101980.0,0.36066656]
[1762613757220,0.61979487,101990.0,101980.0,0.36066656]
[1762613758509,0.52170167,101990.0,101980.0,0.36066656]
[1762613759118,0.55702111,101990.0,101980.0,0.36066656]
[1762613759317,0.50409792,101990.0,101980.0,0.36066656]
[1762613759517,0.60219112,101990.0,101980.0,0.36066656]
[1762613760820,0.65511431,101990.0,101980.0,0.2424428]
[1762613761022,0.65511431,101990.0,101980.0,0.36066656]
[1762613761023,0.60219112,101990.0,101980.0,0.36066656]
[1762613761210,0.87143147,101990.0,101970.0,0.10694001]
[1762613761417,0.54929638,101980.0,101970.0,0.00014702]
[1762613761721,0.6629709,101980.0,101970.0,0.00014702]
[1762613761916,0.68073065,101980.0,101970.0,0.00014702]
[1762613762423,0.59269828,101980.0,101970.0,0.00014702]
[1762613763222,0.59269828,101980.0,101970.0,0.03139702]
[1762613763415,0.64559811,101980.0,101970.0,0.12841702]
[1762613763617,0.64559811,101980.0,101970.0,0.22652952]
[1762613763813,0.52737435,101980.0,101970.0,0.22652952]
[1762613764121,0.53037435,101980.0,101970.0,0.12741702]
[1762613764816,0.53137435,101980.0,101970.0,0.12741702]
[1762613766023,0.64959811,101980.0,101970.0,0.12741702]
[1762613766325,0.64956084,101980.0,101970.0,0.12741702]
[1762613767219,0.64956084,101980.0,101970.0,0.07884702]
[1762613767816,0.64956084,101980.0,101970.0,0.12741702]
[1762613768023,0.64956084,101980.0,101970.0,0.34371601]
[1762613768518,0.684779,101980.0,101970.0,0.12741702]
[1762613768715,0.64956084,101980.0,101970.0,0.12741702]
[1762613769013,0.76774733,101980.0,101970.0,0.12741702]
[1762613769216,0.76774733,101980.0,101970.0,0.07884702]
[1762613769217,0.80296039,101980.0,101970.0,0.07884702]
[1762613769823,0.80296039,101980.0,101970.0,0.12741702]
[1762613770024,0.75006056,101980.0,101970.0,0.12741702]
[1762613772029,0.63187407,101980.0,101970.0,0.12741702]
[1762613774627,0.75006056,101980.0,101970.0,0.07884702]
[1762613774821,0.80296039,101980.0,101970.0,0.00014702]
[1762613776118,0.76774733,101980.0,101970.0,0.00014702]
[1762613776321,0.78547964,101980.0,101970.0,0.00014702]
[1762613777534,0.76765072,101980.0,101970.0,0.00014702]
[1762613778529,0.91524828,101980.0,101970.0,2e-08]
[1762613779125,0.86244506,101980.0,101970.0,2e-08]
[1762613779428,0.95047743,101980.0,101970.0,2e-08]
[1762613780333,1.02088444,101980.0,101970.0,2e-08]
[1762613780530,0.86244506,101980.0,101970.0,2e-08]
[1762613783036,0.86244506,101980.0,101970.0,0.12727002]
[1762613783628,0.91525963,101980.0,101970.0,0.12727002]
[1762613784033,0.86244506,101980.0,101970.0,0.12727002]
[1762613786737,0.86244506,101980.0,101970.0,0.03025002]
[1762613787038,0.86244506,101980.0,101970.0,0.07823002]
[1762613787334,0.86244506,101980.0,101970.0,0.12373002]
[1762613788238,0.86244506,101980.0,101970.0,0.07823002]
[1762613789239,0.86244506,101980.0,101970.0,0.12373002]
[1762613789538,0.86244506,101980.0,101970.0,0.03025002]
[1762613791040,0.93285207,101980.0,101970.0,0.03025002]
[1762613791539,0.93285207,101980.0,101970.0,2e-08]
[1762613792234,0.93285207,101980.0,101970.0,0.02795002]
[1762613794134,0.0981125,101970.0,101960.0,0.12557]
[1762613794331,0.57709899,101970.0,101960.0,0.12557]
[1762613794531,0.68952065,101970.0,101960.0,0.12557]
[1762613794831,0.80770714,101970.0,101960.0,0.12557]
[1762613795541,0.80870714,101970.0,101960.0,0.12557]
[1762613795736,0.69052065,101970.0,101960.0,0.12557]
[1762613796038,0.80870714,101970.0,101960.0,0.08007]
[1762613796240,0.89673951,101970.0,101960.0,0.08007]
[1762613796434,0.77855302,101970.0,101960.0,0.08007]
[1762613797442,0.69352065,101970.0,101960.0,0.08007]
[1762613797639,0.81170714,101970.0,101950.0,0.03223702]
[1762613797842,0.81170714,101970.0,101950.0,0.12571702]
[1762613797843,0.69529508,101960.0,101950.0,0.12571702]
[1762613798343,0.7998634,101960.0,101950.0,0.12571702]
[1762613799042,0.87045734,101960.0,101950.0,0.12571702]
[1762613799644,0.63408436,101960.0,101950.0,0.12571702]
[1762613799945,0.75227085,101960.0,101950.0,0.12571702]
[1762613800136,0.68267691,101960.0,101950.0,0.24390351]
[1762613800337,0.68267691,101960.0,101950.0,0.12571702]
[1762613800550,0.73561144,101960.0,101950.0,0.12571702]
[1762613801356,0.61742495,101960.0,101950.0,0.24390351]
[1762613801854,0.59977494,101960.0,101950.0,0.24390351]
[1762613802157,0.73561144,101960.0,101950.0,0.24390351]
[1762613802354,0.61742495,101960.0,101950.0,0.24390351]
[1762613803058,0.73561144,101960.0,101950.0,0.24390351]
[1762613805157,0.73561144,101960.0,101950.0,0.12571702]
[1762613805355,0.73561144,101960.0,101950.0,0.24390351]
[1762613805954,0.73561144,101960.0,101950.0,0.12571702]
[1762613806155,0.73561144,101960.0,101950.0,0.24390351]
[1762613806453,0.73561144,101960.0,101950.0,0.12571702]
[1762613806855,0.85379793,101960.0,101950.0,0.12571702]
[1762613807655,0.8008634,101960.0,101950.0,0.12571702]
[1762613807859,0.8008634,101960.0,101950.0,0.08021702]
[1762613808059,0.9480822,101960.0,101950.0,0.08021702]
[1762613808461,1.01867614,101960.0,101950.0,0.12394702]
[1762613813364,1.37947614,101960.0,101950.0,0.12394702]
[1762613814862,1.26128965,101960.0,101950.0,0.12394702]
[1762613815463,1.14310316,101960.0,101950.0,0.12394702]
[1762613815661,1.26128965,101960.0,101950.0,0.24213351]
[1762613815962,1.26128965,101960.0,101950.0,0.12394702]
[1762613818060,1.19069571,101960.0,101950.0,0.12394702]
[1762613818264,1.24364083,101960.0,101950.0,0.12394702]
[1762613822569,1.3088822,101960.0,101950.0,0.12394702]
[1762613824660,1.37947614,101960.0,101950.0,0.12394702]
[1762613826465,1.26134691,101960.0,101950.0,0.12394702]
[1762613828270,1.27592691,101960.0,101950.0,2e-08]
[1762613828477,0.1793116,101950.0,101940.0,0.11574]
[1762613828674,0.5401116,101950.0,101940.0,0.11574]
[1762613828876,0.64609728,101950.0,101940.0,0.11574]
[1762613829876,0.64609728,101950.0,101940.0,0.11674]
[1762613830078,0.69907847,101950.0,101940.0,0.33312505]
[1762613830278,0.61789847,101950.0,101940.0,0.33312505]
[1762613830570,0.69907847,101950.0,101940.0,0.33312505]
[1762613830773,0.65321581,101950.0,101940.0,0.33312505]
[1762613830971,0.60023462,101950.0,101940.0,0.23498375]
[1762613831175,0.68141462,101950.0,101940.0,0.11674]
[1762613831372,0.68141462,101950.0,101940.0,0.23498375]
[1762613831569,0.68141462,101950.0,101940.0,0.11674]
[1762613831771,0.68141462,101950.0,101940.0,0.23498375]
[1762613832669,0.68141462,101950.0,101940.0,0.11674]
[1762613833971,0.68141462,101950.0,101940.0,0.23498375]
[1762613834275,0.68141462,101950.0,101940.0,0.11674]
[1762613834577,0.73439581,101950.0,101940.0,0.11674]
[1762613834879,0.69907847,101950.0,101940.0,0.11674]
[1762613836364,0.69907847,101950.0,101940.0,0.2148813]
[1762613836568,0.69907847,101950.0,101940.0,0.11674]
[1762613837468,0.69907847,101950.0,101940.0,0.23498375]
[1762613838280,0.71365847,101950.0,101940.0,0.11674]
[1762613838581,0.69907847,101950.0,101940.0,0.11674]
[1762613841082,0.69907847,101950.0,101940.0,0.33312505]
[1762613841083,0.73439774,101950.0,101940.0,0.33312505]
[1762613843477,0.75625774,101950.0,101940.0,0.001]
[1762613843680,0.73855122,101950.0,101940.0,0.08649]
[1762613843981,0.71669122,101950.0,101940.0,0.11205]
[1762613844475,0.69907587,101950.0,101940.0,0.23029375]
[1762613844677,0.69907587,101950.0,101940.0,0.32843505]
[1762613844978,0.65321036,101950.0,101940.0,0.6919188]
[1762613845181,0.60023177,101950.0,101940.0,0.4466788]
[1762613845384,0.56491728,101950.0,101940.0,0.6919188]
[1762613846182,0.56491728,101950.0,101940.0,0.57367505]
[1762613846584,0.56491728,101950.0,101940.0,0.32843505]
[1762613846885,0.56491728,101950.0,101940.0,0.57367505]
[1762613847178,0.68067177,101950.0,101940.0,0.11205]
[1762613849581,0.73365036,101950.0,101940.0,0.11205]
[1762613852686,0.50210017,101950.0,101940.0,0.32843495]
[1762613852889,0.39626151,101960.0,101950.0,0.1776016]
[1762613853092,0.57197581,101960.0,101950.0,0.19771375]
[1762613853286,0.57197581,101960.0,101950.0,0.54104535]
[1762613854385,0.53666132,101960.0,101950.0,0.54104535]
[1762613854586,0.59774581,101960.0,101950.0,0.29584535]
[1762613855186,0.59674581,101960.0,101950.0,0.29584535]
[1762613855387,0.56143132,101960.0,101950.0,0.29584535]
[1762613856296,0.56143132,101960.0,101950.0,0.19871375]
[1762613856898,0.56143132,101960.0,101950.0,0.29684535]
[1762613857097,0.56143132,101960.0,101950.0,0.19871375]
[1762613857297,0.56143132,101960.0,101950.0,0.29684535]
[1762613858600,0.56143132,101960.0,101950.0,0.44644535]
[1762613859392,0.59674581,101960.0,101950.0,0.44644535]
[1762613859599,0.59674581,101960.0,101950.0,0.44544535]
[1762613860099,0.7034825,101960.0,101950.0,0.44544535]
[1762613861697,0.7034825,101960.0,101950.0,0.34731375]
[1762613862302,0.66816801,101960.0,101950.0,0.34731375]
[1762613862897,0.07759,101940.0,101930.0,0.2296496]
[1762613863105,0.101,101940.0,101930.0,0.34789335]
[1762613863294,0.4618,101940.0,101930.0,0.34789335]
[1762613863493,0.4618,101940.0,101930.0,0.56675569]
[1762613864001,0.57075345,101940.0,101930.0,0.29595569]
[1762613864221,0.57075345,101940.0,101930.0,0.17771194]
[1762613864505,0.57075345,101940.0,101930.0,0.29595569]
[1762613864995,0.57075345,101940.0,101930.0,0.29695569]
[1762613865198,0.57075345,101940.0,101930.0,0.29895569]
[1762613865802,0.57075345,101940.0,101930.0,0.29695569]
[1762613866103,0.57075345,101940.0,101930.0,0.29795569]
[1762613866498,0.57075345,101940.0,101930.0,0.29695569]
[1762613869307,0.57075345,101940.0,101930.0,0.29516569]
[1762613869501,0.57075345,101940.0,101930.0,0.07877804]
[1762613870098,0.57075345,101940.0,101930.0,0.19702179]
[1762613870793,0.60606794,101940.0,101930.0,0.07877804]
[1762613870994,0.57075345,101940.0,101930.0,0.00109804]
[1762613871198,0.65904653,101940.0,101930.0,0.00109804]
[1762613872007,0.65904653,101940.0,101930.0,0.03919804]
[1762613872398,0.65904653,101940.0,101930.0,0.00109804]
[1762613872709,0.60606794,101940.0,101930.0,0.00109804]
[1762613873209,0.65904653,101940.0,101930.0,0.03919804]
[1762613873403,0.60606794,101940.0,101930.0,0.03919804]
[1762613873708,0.60606794,101940.0,101930.0,0.07557804]
[1762613873909,0.60606794,101940.0,101930.0,0.17372894]
[1762613874210,0.60606794,101940.0,101930.0,0.29197269]
[1762613874999,0.70420914,101940.0,101930.0,0.29197269]
[1762613875694,0.70420914,101940.0,101930.0,0.15744179]
[1762613875895,0.70420914,101940.0,101930.0,0.29187269]
[1762613877396,0.66889465,101940.0,101930.0,0.29187269]
[1762613878604,0.30809465,101940.0,101930.0,0.65267269]
[1762613880104,0.66889465,101940.0,101930.0,0.29187269]
[1762613880610,0.30809465,101940.0,101930.0,0.29187269]
[1762613881606,0.18654345,101940.0,101930.0,0.29187269]
[1762613881810,0.03753,101940.0,101930.0,0.66564269]
[1762613882011,0.07461,101940.0,101930.0,0.91088269]
[1762613882210,0.07461,101940.0,101930.0,0.66564269]
[1762613883811,0.4837052,101950.0,101930.0,1.15359116]
[1762613884009,0.03708,101950.0,101940.0,0.7775387]
[1762613884214,0.59290581,101960.0,101950.0,0.1730916]
[1762613884405,0.55759132,101960.0,101950.0,0.29133535]
[1762613884607,0.66974487,101960.0,101950.0,0.29133535]
[1762613886014,0.66974487,101960.0,101950.0,0.29233535]
[1762613888308,0.66974487,101960.0,101950.0,0.29226885]
[1762613889420,0.66974487,101960.0,101950.0,0.19413725]
[1762613890908,0.66974487,101960.0,101950.0,0.29226885]
[1762613891316,0.66974487,101960.0,101950.0,0.29126885]
[1762613892118,0.67074487,101960.0,101950.0,0.29126885]
[1762613894921,0.67074487,101960.0,101950.0,0.29226885]
[1762613895320,0.66974487,101960.0,101950.0,0.29226885]
[1762613896521,0.78792212,101960.0,101950.0,0.11917725]
[1762613896815,0.75903795,101960.0,101950.0,0.001]
[1762613897005,0.8772152,101960.0,101950.0,0.001]
[1762613897210,0.07375,101940.0,101930.0,0.17320894]
[1762613897416,0.45577,101940.0,101930.0,0.25510619]
[1762613897722,0.6833672,101940.0,101930.0,0.11827529]
[1762613898016,0.68201169,101940.0,101920.0,0.11817725]
[1762613898216,0.57394725,101930.0,101920.0,0.11817725]
[1762613898424,0.09497,101920.0,101910.0,0.21633975]
[1762613898616,0.09497,101920.0,101910.0,0.11817725]
[1762613898817,0.09497,101910.0,101900.0,0.65210995]
[1762613899116,0.30492046,101910.0,101900.0,0.4094872]
[1762613899309,0.20675036,101910.0,101900.0,0.4094872]
[1762613899514,0.20675036,101910.0,101900.0,0.7702872]
[1762613900516,0.21801043,101910.0,101900.0,0.7702872]
[1762613901318,0.21801043,101910.0,101900.0,0.7742872]
[1762613902222,0.21801043,101910.0,101900.0,0.7782872]
[1762613904120,0.09511702,101920.0,101910.0,0.1731301]
[1762613904321,0.19327752,101920.0,101910.0,0.61582735]
[1762613904619,0.660691,101920.0,101910.0,0.25502735]
[1762613904820,0.660691,101920.0,101910.0,0.29130735]
[1762613905325,0.660691,101920.0,101910.0,0.29730735]
[1762613906021,0.57389826,101920.0,101910.0,0.29730735]
[1762613907528,0.57389826,101920.0,101910.0,0.1791301]
[1762613907833,0.57389826,101920.0,101910.0,0.29730735]
[1762613908323,0.57389826,101920.0,101910.0,0.1791301]
[1762613908523,0.57389826,101920.0,101910.0,0.29730735]
[1762613909824,0.21309826,101920.0,101910.0,0.29730735]
[1762613910020,0.57389826,101920.0,101910.0,0.29730735]
[1762613910221,0.21309826,101920.0,101910.0,0.29730735]
[1762613910830,0.21309826,101920.0,101910.0,0.65810735]
[1762613911231,0.21309826,101920.0,101910.0,0.7762846]
[1762613911533,0.21309826,101920.0,101910.0,0.65810735]
[1762613912833,0.21309826,101920.0,101910.0,0.29730735]
[1762613918929,0.21309826,101920.0,101910.0,0.4154846]
[1762613919934,0.31125876,101920.0,101910.0,0.29730735]
[1762613922829,0.31125876,101920.0,101910.0,0.006]
[1762613923031,0.67205876,101920.0,101910.0,0.12417725]
[1762613923332,0.39611449,101930.0,101910.0,0.64549735]
[1762613923534,0.17945081,101920.0,101910.0,0.64549735]